bitfinex-derivatives/quotes_SOLF0:USTF0_20220108
["timestamp","ask_amount","ask_price","bid_price","bid_amount"]
[1641664774234,4.0,135.37,135.33,27.66479]
[1641664774436,5.90972396,135.38,135.33,27.66479]
[1641664774734,27.66479,135.42,135.33,27.66479]
[1641664774735,5.90765984,135.42,135.35,7.38743397]
[1641664775136,5.90765984,135.42,135.34,1.846]
[1641664775338,5.90765984,135.42,135.38,27.66479]
[1641664776436,5.90571879,135.47,135.41,7.38388836]
[1641664776836,5.90571879,135.47,135.39,7.38497895]
[1641664777238,5.90571879,135.47,135.42,27.66479]
[1641664779641,34.74822406,135.53,135.42,35.04813318]
[1641664779841,34.74822406,135.53,135.43,1.845]
[1641664780642,7.08343406,135.53,135.43,1.845]
[1641664780843,2.47779168,135.52,135.43,1.845]
[1641664781043,2.47779168,135.52,135.42,35.04813318]
[1641664781243,2.47779168,135.52,135.51,27.66479]
[1641664782847,2.47568101,135.56,135.52,1.844]
[1641664783053,41.47504699,135.6,135.52,1.844]
[1641664783251,41.47504699,135.6,135.59,55.32958]
[1641664783451,19.50470062,135.6,135.59,55.32958]
[1641664783850,110.79541565,135.68,135.59,64.54558007]
[1641664784050,4.0,135.66,135.59,62.70258007]
[1641664784250,4.0,135.64,135.59,27.66479]
[1641664784450,7.0776751,135.64,135.51,70.618]
[1641664784650,5.89902609,135.62,135.52,7.378168]
[1641664785051,5.89902609,135.62,135.54,7.37707941]
[1641664785253,5.89902609,135.62,135.57,27.66479]
[1641664785451,5.89600539,135.69,135.6,11.37354373]
[1641664785653,5.89600539,135.69,135.61,1.843]
[1641664785852,20.0,135.68,135.57,27.66479]
[1641664786151,5.89814913,135.64,135.57,27.66479]
[1641664786552,5.8956446,135.7,135.57,27.66479]
[1641664786752,5.8956446,135.7,135.6,7.37381558]
[1641664786953,5.89690875,135.67,135.6,7.37381558]
[1641664787353,5.89690875,135.67,135.6,35.03860558]
[1641664787752,5.89690875,135.67,135.6,27.66479]
[1641664788553,5.89867982,135.63,135.6,27.66479]
[1641664788956,5.89867982,135.63,135.54,1.843]
[1641664789152,5.89867982,135.63,135.52,73.602268]
[1641664789354,33.5652993,135.59,135.52,73.602268]
[1641664789553,33.5652993,135.59,135.49,27.66479]
[1641664789753,5.90188668,135.55,135.47,27.66479]
[1641664789955,5.9040436,135.51,135.42,7.38334318]
[1641664790355,5.90525165,135.48,135.37,7.38606987]
[1641664790557,4.0,135.47,135.37,9.23106987]
[1641664790756,5.90652854,135.45,135.37,7.38606987]
[1641664790956,5.90652854,135.45,135.35,1.846]
[1641664791257,4.0,135.48,135.39,7.38497895]
[1641664791460,9.90560415,135.47,135.37,7.38634265]
[1641664791756,5.90640091,135.45,135.37,7.38634265]
[1641664791958,5.90640091,135.45,135.34,7.38770686]
[1641664792156,9.90640091,135.45,135.34,7.38770686]
[1641664792355,5.90640091,135.45,135.34,7.38770686]
[1641664792556,5.90799984,135.41,135.32,1.846]
[1641664792756,5.9105543,135.36,135.29,9.23643677]
[1641664792956,5.9105543,135.36,135.29,7.39043677]
[1641664793458,5.9082669,135.41,135.35,27.66479]
[1641664793657,9.9082669,135.41,135.33,27.66479]
[1641664793858,7.39289543,135.4,135.25,9.23889543]
[1641664794158,4.0,135.34,135.25,9.23889543]
[1641664794359,9.91138473,135.34,135.25,7.39289543]
[1641664794559,4.0,135.32,135.25,7.39289543]
[1641664794759,4.0,135.33,135.25,7.39289543]
[1641664795360,31.66479,135.31,135.25,7.39289543]
[1641664795761,27.66479,135.31,135.25,7.39289543]
[1641664795963,5.91288298,135.3,135.25,7.39289543]
[1641664796762,7.09250994,135.36,135.27,7.39152931]
[1641664796962,5.90804078,135.41,135.29,7.38961759]
[1641664797261,5.90804078,135.41,135.3,7.39016369]
[1641664797460,5.90804078,135.41,135.3,27.66479]
[1641664797661,9.90804078,135.41,135.3,27.66479]
[1641664798063,5.90804078,135.41,135.31,4.0]
[1641664798263,5.90804078,135.41,135.31,1.846]
[1641664798563,5.90804078,135.41,135.33,7.38852562]
[1641664798763,5.90711492,135.43,135.31,1.846]
[1641664798964,5.90711492,135.43,135.36,4.0]
[1641664799264,8.5039803,135.47,135.38,4.0]
[1641664799465,8.5039803,135.47,135.42,27.66479]
[1641664799666,8.50205607,135.5,135.44,7.38252556]
[1641664800065,8.50205607,135.5,135.42,27.66479]
[1641664800266,5.90435105,135.5,135.43,1.845]
[1641664800464,5.90435105,135.5,135.42,27.66479]
[1641664800965,5.90435105,135.5,135.44,7.38252556]
[1641664801268,5.90435105,135.5,135.42,27.66479]
[1641664801269,4.0,135.46,135.42,27.66479]
[1641664801466,5.9060282,135.46,135.42,27.66479]
[1641664801966,7.08475859,135.51,135.42,35.04813318]
[1641664802364,9.90288887,135.53,135.43,1.845]
[1641664802565,5.90288887,135.53,135.42,36.89313318]
[1641664803166,4.0,135.51,135.42,27.66479]
[1641664803366,9.90288887,135.53,135.46,27.66479]
[1641664803568,5.90459657,135.49,135.42,27.66479]
[1641664803768,4.0,135.48,135.42,27.66479]
[1641664803967,4.0,135.43,135.33,1.845]
[1641664804166,4.0,135.41,135.33,7.38825268]
[1641664804367,4.0,135.4,135.31,9.23534457]
[1641664804568,7.08827537,135.44,135.37,11.38606987]
[1641664804868,14.47008416,135.52,135.39,7.38416097]
[1641664805067,7.08401429,135.52,135.43,7.38252556]
[1641664805267,7.08401429,135.52,135.45,4.0]
[1641664805467,15.45472127,135.54,135.5,27.66479]
[1641664805667,15.45472127,135.54,135.53,7.37762367]
[1641664805869,23.95175541,135.58,135.53,7.37762367]
[1641664806368,15.45472127,135.58,135.53,7.37762367]
[1641664806567,15.45472127,135.58,135.54,1.844]
[1641664806767,2.127e-05,135.58,135.56,7.37571913]
[1641664806967,72.55279783,135.66,135.56,7.37571913]
[1641664806968,10.19044643,135.66,135.56,7.37571913]
[1641664807367,4.0,135.64,135.59,27.66479]
[1641664807569,10.19044643,135.66,135.59,31.66479]
[1641664807770,2.127e-05,135.66,135.59,35.03914935]
[1641664808169,5.89430471,135.73,135.63,11.37191301]
[1641664808370,5.89430471,135.73,135.62,29.4843917]
[1641664808570,47.11526587,135.75,135.63,1.842]
[1641664808770,47.11526587,135.75,135.69,7.36865375]
[1641664808973,41.22201934,135.75,135.71,7.36783938]
[1641664809171,41.22201934,135.75,135.72,7.36729657]
[1641664809372,41.22201934,135.75,135.74,62.69524862]
[1641664809572,62.36237267,135.79,135.74,62.69524862]
[1641664809771,50.4710038,135.8,135.78,7.36187286]
[1641664810171,51.93799105,135.84,135.79,7.35970561]
[1641664810372,51.93799105,135.84,135.79,1.84]
[1641664810571,14.93799105,135.84,135.83,7.35753964]
[1641664810771,14.93799105,135.84,135.83,9.19753964]
[1641664810973,19.42060849,135.85,135.83,11.35753964]
[1641664811172,102.30459241,135.88,135.84,4.0]
[1641664811372,7.0574798,136.03,135.87,66.68441396]
[1641664811577,5.88137686,136.03,135.89,4.0]
[1641664811774,5.88137686,136.03,135.97,7.35375225]
[1641664811974,106.30459241,136.06,135.98,7.35294118]
[1641664812173,106.30459241,136.06,135.99,7.35240056]
[1641664812372,106.30459241,136.06,135.98,7.35321152]
[1641664812573,4.0,136.06,135.95,4.0]
[1641664812773,4.0,136.04,135.95,4.0]
[1641664812974,4.0,136.06,135.99,7.35240056]
[1641664813176,4.0,136.05,135.99,7.35240056]
[1641664813377,4.0,136.05,136.01,27.66479]
[1641664813675,4.0,136.07,135.98,7.35321152]
[1641664813875,4.0,136.05,135.96,1.837]
[1641664814077,4.0,136.01,135.95,7.35456351]
[1641664814276,1.03989874,135.99,135.92,7.35618655]
[1641664814477,33.23866796,136.04,135.89,7.35781032]
[1641664814678,4.0,136.0,135.9,7.35726898]
[1641664814878,1.03989874,135.98,135.9,7.35726898]
[1641664815076,1.03989874,135.98,135.9,29.42366398]
[1641664815275,1.03989874,135.96,135.91,7.35699834]
[1641664815477,4.0,136.0,135.92,27.66479]
[1641664815677,1.03989874,136.01,135.96,7.35429307]
[1641664815876,7.35429307,136.11,136.0,7.35213028]
[1641664816276,7.05370974,136.1,136.0,7.35213028]
[1641664816578,18.40358367,136.15,136.03,7.35023888]
[1641664816579,7.05145339,136.15,136.03,7.35023888]
[1641664817078,1.03989874,136.16,136.11,7.34618916]
[1641664817277,1.03989874,136.18,136.07,7.34807848]
[1641664817479,5.872865,136.22,136.17,7.34241345]
[1641664817679,5.872865,136.22,136.21,7.33998826]
[1641664817878,4.99907937,136.26,136.21,7.33998826]
[1641664818279,24.0,136.22,136.11,27.66479]
[1641664818477,5.87281316,136.23,136.11,30.62489126]
[1641664818678,4.99907937,136.26,136.16,2.96010126]
[1641664818877,8.0,136.25,136.16,2.96010126]
[1641664819079,8.0,136.25,136.12,1.835]
[1641664819279,1.03989874,136.26,136.16,7.34241345]
[1641664819477,1.03989874,136.26,136.12,9.17957053]
[1641664819677,1.03989874,136.18,136.12,9.17957053]
[1641664819878,1.03989874,136.17,136.12,1.835]
[1641664820078,1.03989874,136.18,136.15,7.3429526]
[1641664820279,1.03989874,136.16,136.11,7.34537976]
[1641664820479,4.0,136.2,136.07,2.96010126]
[1641664820680,1.03989874,136.12,136.07,7.34726865]
[1641664820881,4.0,136.15,136.07,7.34726865]
[1641664821079,1.03989874,136.08,136.05,1.836]
[1641664821380,1.03989874,136.12,136.03,7.34942858]
[1641664821580,1.03989874,136.16,136.1,7.34564954]
[1641664821780,5.8752892,136.17,136.1,7.34564954]
[1641664821980,7.34807848,136.21,136.1,7.34564954]
[1641664822181,36.42713301,136.28,136.1,7.34564954]
[1641664822182,1.03989874,136.2,136.12,7.34457053]
[1641664822380,1.03989874,136.23,136.12,10.30467179]
[1641664822581,6.9120005,136.24,136.16,7.34241345]
[1641664822982,5.03989874,136.17,136.13,1.835]
[1641664823181,5.87210176,136.24,136.13,1.835]
[1641664823182,1.03989874,136.14,136.13,1.835]
[1641664823382,1.03989874,136.14,136.08,7.34672887]
[1641664823582,1.03989874,136.14,136.04,1.836]
[1641664823583,1.03989874,136.11,136.04,9.18515852]
[1641664823783,1.03989874,136.06,136.03,27.66479]
[1641664824186,5.87854224,136.09,136.03,35.01448866]
[1641664824384,6.91844098,136.09,136.03,35.01448866]
[1641664824584,4.0,136.12,136.03,35.01448866]
[1641664824784,1.03989874,136.07,136.01,9.18750902]
[1641664824986,1.03989874,136.07,135.94,70.60780126]
[1641664824987,5.87911272,136.08,135.98,7.35240056]
[1641664825186,4.0,136.06,135.95,7.35402265]
[1641664825488,1.03989874,136.04,135.98,2.96010126]
[1641664825685,1.03989874,136.04,135.96,35.01827187]
[1641664826084,13.23421716,136.08,135.96,27.66479]
[1641664826285,5.87911272,136.08,135.97,7.35267086]
[1641664826586,1.03989874,135.98,135.96,27.66479]
[1641664826888,5.88077004,136.04,135.96,27.66479]
[1641664827285,4.0,136.12,136.01,7.35077918]
[1641664827484,5.87837868,136.1,136.02,7.34996876]
[1641664827684,5.87837868,136.1,136.01,27.66479]
[1641664827887,1.03989874,136.08,136.01,27.66479]
[1641664828085,6.91827742,136.1,136.01,27.66479]
[1641664828384,5.87837868,136.1,136.01,29.50179]
[1641664828784,6.91827742,136.1,136.01,29.50179]
[1641664828984,5.87837868,136.1,136.01,29.50179]
[1641664829183,1.03989874,136.05,136.01,27.66479]
[1641664829384,1.03989874,136.05,136.01,29.50179]
[1641664829586,1.03989874,136.09,136.02,7.35023888]
[1641664829784,5.87837868,136.1,136.02,7.35023888]
[1641664830085,1.03989874,136.1,136.02,7.35023888]
[1641664830384,9.87769024,136.11,136.03,1.837]
[1641664830584,5.87816574,136.1,136.02,7.35023888]
[1641664830786,6.91806448,136.1,136.02,7.35023888]
[1641664830984,5.87816574,136.1,136.02,9.18723888]
[1641664831184,1.03989874,136.09,136.02,9.18723888]
[1641664831386,1.03989874,136.11,136.02,7.35023888]
[1641664831585,1.03989874,136.14,136.05,2.96010126]
[1641664831785,1.03989874,136.15,136.11,7.34537976]
[1641664831986,7.05098193,136.16,136.11,7.34537976]
[1641664832188,8.09088067,136.16,136.11,7.34537976]
[1641664832385,8.09088067,136.16,136.05,1.836]
[1641664832586,1.03989874,136.14,136.05,31.22399501]
[1641664832787,5.87695944,136.13,136.05,1.836]
[1641664833087,1.03989874,136.06,136.04,27.66479]
[1641664833287,5.87915633,136.08,136.01,27.66479]
[1641664833486,1.03989874,136.1,136.02,2.96010126]
[1641664833687,7.05278188,136.12,136.05,7.34861846]
[1641664833988,1.03989874,136.16,136.08,7.34672887]
[1641664834187,5.87527013,136.17,136.08,7.34672887]
[1641664834792,1.03989874,136.16,136.08,7.34672887]
[1641664834990,1.03989874,136.12,136.09,1.836]
[1641664835190,1.03989874,136.1,136.05,7.34834846]
[1641664835391,4.0,136.14,136.05,7.34834846]
[1641664835592,1.03989874,136.09,136.06,27.66479]
[1641664835790,5.8760372,136.15,136.06,27.66479]
[1641664835791,1.03989874,136.1,136.06,27.66479]
[1641664835990,1.03989874,136.07,136.0,7.35104936]
[1641664836191,1.03989874,136.01,135.97,74.75137086]
[1641664836391,1.03989874,136.01,135.94,7.35456351]
[1641664836591,1.03989874,135.99,135.95,1.838]
[1641664836791,5.88136531,136.03,135.94,7.35456351]
[1641664836992,1.03989874,136.03,135.95,1.838]
[1641664837194,1.03989874,135.99,135.95,1.838]
[1641664837394,5.88098262,136.04,135.95,1.838]
[1641664837594,1.03989874,135.99,135.96,27.66479]
[1641664837795,1.03989874,135.97,135.96,27.66479]
[1641664838393,1.03989874,135.97,135.94,35.01935351]
[1641664838594,1.03989874,135.95,135.94,27.66479]
[1641664838996,5.03989874,135.95,135.94,27.66479]
[1641664839194,5.8860815,135.92,135.85,7.3594348]
[1641664839396,1.03989874,135.87,135.85,7.3594348]
[1641664839594,1.03989874,135.86,135.85,27.66479]
[1641664839797,1.03989874,135.86,135.79,1.84]
[1641664839996,1.03989874,135.88,135.81,7.36133093]
[1641664840195,1.03989874,135.87,135.81,7.36133093]
[1641664840394,1.03989874,135.84,135.8,9.20214386]
[1641664840596,5.88762204,135.88,135.8,7.36214386]
[1641664840895,5.88582495,135.92,135.87,7.35753964]
[1641664841095,1.03989874,135.99,135.9,7.35672773]
[1641664841296,15.31605695,135.98,135.9,7.35672773]
[1641664841594,15.31605695,135.98,135.94,2.96010126]
[1641664841795,15.31605695,135.98,135.95,12.15212391]
[1641664841995,15.31605695,135.98,135.95,9.19202265]
[1641664842396,1.03989874,135.96,135.95,7.35402265]
[1641664842599,4.0,136.06,135.94,7.35456351]
[1641664842796,1.03989874,136.05,135.98,2.96010126]
[1641664842997,1.03989874,136.05,135.99,7.35158978]
[1641664843196,15.31605695,136.07,135.99,10.31169104]
[1641664843397,16.35595569,136.09,136.01,2.96010126]
[1641664843598,1.03989874,136.06,136.04,27.66479]
[1641664843998,15.31605695,136.09,136.04,27.66479]
[1641664844397,15.31605695,136.09,136.05,2.96010126]
[1641664844598,15.31605695,136.12,136.05,1.837]
[1641664845099,19.31605695,136.12,136.04,29.50179]
[1641664845298,1.03989874,136.05,136.0,7.35131956]
[1641664845598,1.03989874,136.04,136.0,7.35131956]
[1641664845798,1.03989874,136.06,136.0,7.35131956]
[1641664846200,27.66479,136.08,135.98,36.85392028]
[1641664846400,33.54401691,136.08,135.98,27.66479]
[1641664846600,4.0,136.06,135.98,27.66479]
[1641664846800,1.03989874,136.03,135.98,27.66479]
[1641664847100,5.88052337,136.05,135.98,27.66479]
[1641664847300,1.03989874,136.02,135.98,27.66479]
[1641664847501,5.88052337,136.05,135.98,27.66479]
[1641664847702,1.03989874,136.0,135.95,1.838]
[1641664847901,4.0,135.97,135.92,7.35537494]
[1641664848102,1.03989874,135.93,135.89,22.67332593]
[1641664848502,5.88420939,135.96,135.89,22.67332593]
[1641664848503,5.88420939,135.96,135.9,7.35672773]
[1641664848904,1.03989874,135.92,135.9,7.35672773]
[1641664849102,5.88420939,135.96,135.87,34.22601217]
[1641664849103,5.88420939,135.96,135.91,2.96010126]
[1641664849303,5.88219289,136.01,135.93,2.96010126]
[1641664849503,5.88219289,136.01,135.94,27.66479]
[1641664849905,1.03989874,135.99,135.94,27.66479]
[1641664850104,1.03989874,135.99,135.94,30.62489126]
[1641664850504,5.88219289,136.01,135.94,27.66479]
[1641664850704,1.03989874,135.95,135.94,27.66479]
[1641664851104,5.03989874,135.95,135.94,27.66479]
[1641664851304,5.88548031,135.93,135.9,7.35645713]
[1641664851505,1.03989874,135.91,135.9,7.35645713]
[1641664851705,6.92537905,135.93,135.9,7.35645713]
[1641664851906,1.03989874,135.91,135.9,7.35645713]
[1641664852106,7.0601162,135.98,135.9,7.35645713]
[1641664852306,1.03989874,135.92,135.9,7.35645713]
[1641664852506,5.88457663,135.95,135.9,7.35645713]
[1641664852810,1.03989874,135.93,135.9,7.35645713]
[1641664853309,8.46523514,136.09,135.89,7.35699834]
[1641664853310,25.23402746,136.04,135.92,2.96010126]
[1641664853607,65.14979943,136.07,136.03,27.66479]
[1641664853806,69.14979943,136.07,136.04,1.837]
[1641664854007,5.03989874,136.05,135.97,7.35267086]
[1641664854206,5.88013469,136.06,135.97,7.35267086]
[1641664854407,28.15059583,136.07,136.03,7.34942858]
[1641664854606,2.21304884,136.06,136.03,7.34942858]
[1641664855008,2.21304884,136.06,136.03,10.30952984]
[1641664855208,2.21304884,136.06,136.05,7.34861846]
[1641664855609,2.21304884,136.06,136.03,27.66479]
[1641664855810,4.0,136.09,136.03,27.66479]
[1641664856010,29.87783884,136.11,136.03,27.66479]
[1641664856211,1.03989874,136.09,136.03,27.66479]
[1641664856410,2.21304884,136.11,136.06,2.96010126]
[1641664856810,2.21304884,136.1,136.09,7.34618916]
[1641664857410,3.25294758,136.1,136.06,7.34807848]
[1641664857611,2.21304884,136.1,136.07,27.66479]
[1641664858013,4.0,136.12,136.07,27.66479]
[1641664858210,1.03989874,136.08,136.04,1.836]
[1641664858409,7.05106609,136.15,135.95,1.837]
[1641664858410,5.03989874,136.05,135.95,1.837]
[1641664858612,1.03989874,135.96,135.94,62.0972]
[1641664858811,1.03989874,135.95,135.94,62.0972]
[1641664859012,11.05729539,136.03,135.88,2.96010126]
[1641664859213,7.05729539,136.03,135.89,1.838]
[1641664859412,1.03989874,135.99,135.89,1.838]
[1641664859714,7.05729539,136.03,135.93,35.01962396]
[1641664859912,5.87516594,136.17,135.93,30.62489126]
[1641664860112,31.09916524,136.13,135.97,10.31277212]
[1641664860311,23.74649438,136.13,136.12,7.34376147]
[1641664860514,23.74649438,136.13,136.12,0.29022715]
[1641664860712,7.80649438,136.13,136.08,2.96010126]
[1641664860913,0.00649438,136.13,136.04,2.96010126]
[1641664861115,62.57108679,136.17,135.98,21.837]
[1641664861314,60.93108679,136.17,136.12,2.96010126]
[1641664861515,45.31108679,136.17,135.98,1.837]
[1641664861814,126.95059322,136.21,136.13,1.836]
[1641664862014,108.32108001,136.21,136.19,27.66479]
[1641664862215,92.62108001,136.21,136.19,27.66479]
[1641664862417,75.70108001,136.21,136.19,27.66479]
[1641664862714,60.90108001,136.23,136.19,27.66479]
[1641664862916,53.12896498,136.23,136.19,27.66479]
[1641664863117,45.22896498,136.23,136.19,21.03051739]
[1641664863316,22.64896498,136.23,136.19,21.03051739]
[1641664863518,4.40896498,136.23,136.2,1.835]
[1641664863718,29.74699658,136.36,136.2,1.835]
[1641664863918,81.90342486,136.55,136.22,22.96010126]
[1641664864119,78.76342486,136.55,136.45,4.0]
[1641664864318,78.76342486,136.55,136.46,4.0]
[1641664864518,78.76342486,136.55,136.54,7.31850117]
[1641664864718,78.76342486,136.55,136.54,7.31769785]
[1641664864920,78.76342486,136.55,136.54,11.31769785]
[1641664865119,20.0,136.7,136.54,11.31769785]
[1641664865319,20.0,136.7,136.57,4.0]
[1641664865520,20.0,136.7,136.61,27.66479]
[1641664866122,20.81776316,136.69,136.59,27.66479]
[1641664866722,20.81776316,136.69,136.62,4.0]
[1641664866922,20.81776316,136.69,136.64,7.31635938]
[1641664867123,20.0,136.76,136.64,11.31635938]
[1641664867321,20.0,136.76,136.64,4.0]
[1641664867524,20.0,136.76,136.67,27.66479]
[1641664867723,20.80719846,136.75,136.62,33.26436698]
[1641664867925,20.0,136.7,136.53,4.0]
[1641664868124,20.0,136.7,136.46,20.0]
[1641664868125,27.32118017,136.7,136.55,7.32118017]
[1641664868328,20.0,136.67,136.55,7.32118017]
[1641664868525,20.0,136.67,136.52,11.32252041]
[1641664868727,20.80719846,136.66,136.53,7.32198426]
[1641664869126,20.0,136.58,136.5,7.32359295]
[1641664869327,27.32734933,136.59,136.43,7.32734933]
[1641664869526,20.0,136.52,136.45,27.66479]
[1641664869726,27.66479,136.56,136.45,27.66479]
[1641664869926,27.66479,136.56,136.43,27.66479]
[1641664869927,27.66479,136.56,136.43,34.99213933]
[1641664870128,27.66479,136.56,136.44,4.0]
[1641664870329,7.02555329,136.65,136.46,4.0]
[1641664870528,7.02555329,136.65,136.54,7.32144818]
[1641664870729,20.0,136.62,136.53,7.32225232]
[1641664871029,7.02555329,136.65,136.49,7.32412934]
[1641664871030,5.85721367,136.59,136.49,7.32412934]
[1641664871228,5.85721367,136.59,136.51,7.32305664]
[1641664871427,5.85721367,136.59,136.49,7.32412934]
[1641664871628,5.85721367,136.59,136.49,11.32412934]
[1641664871828,7.0255985,136.65,136.53,7.32225232]
[1641664872231,27.66479,136.61,136.53,7.32225232]
[1641664872433,33.52124029,136.61,136.53,7.32225232]
[1641664872632,27.66479,136.63,136.54,7.32144818]
[1641664872832,5.85406262,136.66,136.56,7.32037627]
[1641664873131,5.85406262,136.66,136.59,7.31876898]
[1641664873332,5.85406262,136.66,136.56,7.32037627]
[1641664873533,20.0,136.65,136.53,7.32225232]
[1641664873731,5.85604377,136.62,136.53,7.32225232]
[1641664873930,5.85604377,136.62,136.52,27.66479]
[1641664874133,5.85604377,136.62,136.53,7.32198426]
[1641664874332,27.66479,136.58,136.5,56.95487165]
[1641664874632,33.52257013,136.58,136.43,35.21871247]
[1641664874831,20.0,136.5,136.4,1.83]
[1641664875032,5.86291046,136.46,136.36,4.0]
[1641664875232,7.03287309,136.51,136.45,4.0]
[1641664875431,7.02675722,136.63,136.5,4.0]
[1641664875631,20.0,136.62,136.46,1.83]
[1641664875834,20.0,136.56,136.44,4.0]
[1641664876031,5.85852411,136.56,136.42,1.831]
[1641664876233,33.1869474,136.56,136.4,7.32842329]
[1641664876431,33.1869474,136.56,136.44,7.32627569]
[1641664876432,5.85852411,136.56,136.44,7.32627569]
[1641664876631,5.85852411,136.56,136.45,1.831]
[1641664877033,5.85852411,136.56,136.42,27.66479]
[1641664877034,5.85852411,136.56,136.44,4.0]
[1641664877234,5.85852411,136.56,136.46,4.0]
[1641664877434,14.35431904,136.6,136.47,1.831]
[1641664877636,14.35431904,136.6,136.45,1.831]
[1641664877833,5.85863985,136.56,136.45,1.831]
[1641664878034,5.85863985,136.56,136.44,7.32627569]
[1641664878234,5.85863985,136.56,136.45,4.0]
[1641664878435,5.85863985,136.56,136.45,29.49579]
[1641664878838,5.85863985,136.56,136.47,4.0]
[1641664879237,5.85863985,136.56,136.45,21.1676048]
[1641664879439,13.18679462,136.56,136.43,1.831]
[1641664879638,5.86167701,136.48,136.36,1.831]
[1641664879838,5.86167701,136.48,136.27,4.0]
[1641664879839,5.86167701,136.48,136.37,4.0]
[1641664880038,7.0324631,136.51,136.4,11.32842329]
[1641664880238,7.0324631,136.51,136.4,4.0]
[1641664880438,34.6972531,136.51,136.41,4.0]
[1641664880638,27.66479,136.51,136.4,27.66479]
[1641664880839,27.66479,136.51,136.41,1.832]
[1641664881239,13.19454267,136.48,136.41,1.832]
[1641664881442,35.19835619,136.48,136.31,74.068]
[1641664881638,5.86208923,136.48,136.31,29.3287385]
[1641664881840,7.33568075,136.42,136.28,33.33519123]
[1641664882041,20.0,136.43,136.25,1.832]
[1641664882239,5.86588978,136.39,136.29,7.33433569]
[1641664882439,5.86588978,136.39,136.25,1.832]
[1641664882440,27.66479,136.38,136.28,27.66479]
[1641664882839,27.66479,136.38,136.28,31.66479]
[1641664883040,27.66479,136.38,136.25,1.832]
[1641664883239,27.66479,136.38,136.24,1.833]
[1641664883440,5.86929725,136.31,136.23,7.33756466]
[1641664883941,5.86929725,136.31,136.22,1.834]
[1641664884139,5.86929725,136.31,136.2,7.33944954]
[1641664884342,27.66479,136.26,136.17,1.834]
[1641664884540,27.66479,136.26,136.16,27.66479]
[1641664884741,5.87211901,136.24,136.16,27.66479]
[1641664886443,27.66479,136.23,136.16,27.66479]
[1641664887043,27.66479,136.23,136.16,35.00639487]
[1641664887244,27.66479,136.26,136.18,4.0]
[1641664887444,27.66479,136.26,136.18,7.34025764]
[1641664887643,27.66479,136.26,136.16,57.02582058]
[1641664887644,5.86999066,136.29,136.19,4.0]
[1641664887845,7.04224298,136.33,136.28,4.0]
[1641664888246,7.04224298,136.33,136.25,1.834]
[1641664888448,7.04224298,136.33,136.24,11.3370263]
[1641664888645,20.0,136.32,136.23,27.66479]
[1641664888947,13.20991866,136.32,136.22,1.834]
[1641664889146,13.20991866,136.32,136.17,7.34106592]
[1641664889344,5.86885274,136.32,136.21,4.0]
[1641664889543,5.87026769,136.28,136.19,7.33971889]
[1641664889745,5.87026769,136.28,136.22,4.0]
[1641664889944,5.87026769,136.28,136.2,1.834]
[1641664890346,5.87026769,136.28,136.22,31.66479]
[1641664890645,5.87026769,136.28,136.22,27.66479]
[1641664890844,5.87026769,136.28,136.2,1.834]
[1641664891045,5.87026769,136.28,136.19,7.33971889]
[1641664891244,27.66479,136.32,136.26,4.0]
[1641664891445,33.53374659,136.32,136.25,4.0]
[1641664891647,33.53374659,136.32,136.23,7.33783387]
[1641664891847,27.66479,136.32,136.29,4.0]
[1641664892047,27.66479,136.32,136.26,4.0]
[1641664892747,5.86831729,136.33,136.3,4.0]
[1641664892947,5.86831729,136.33,136.29,4.0]
[1641664893148,7.03994442,136.37,136.32,11.33272227]
[1641664893350,7.03994442,136.37,136.29,7.33460466]
[1641664893548,7.03994442,136.37,136.31,4.0]
[1641664893948,5.86443484,136.42,136.3,7.33406674]
[1641664894148,5.86443484,136.42,136.34,4.0]
[1641664894149,1.17384714,136.4,136.34,4.0]
[1641664894348,4.95805498,136.51,136.39,70.65854039]
[1641664894547,4.95805498,136.51,136.4,1.832]
[1641664894747,4.95805498,136.51,136.46,4.0]
[1641664894948,4.95805498,136.51,136.44,4.0]
[1641664895147,4.95805498,136.51,136.5,4.0]
[1641664895348,4.95805498,136.51,136.5,11.32332479]
[1641664895547,5.498e-05,136.51,136.5,8.0]
[1641664895748,5.498e-05,136.57,136.5,4.0]
[1641664896047,5.498e-05,136.57,136.47,1.831]
[1641664896249,5.498e-05,136.57,136.5,7.32332479]
[1641664896447,5.498e-05,136.57,136.48,4.0]
[1641664896648,22.36684194,136.6,136.49,4.0]
[1641664896849,20.0,136.58,136.47,4.0]